bitfinex/quotes_BTCUSD_20240902
["timestamp","ask_amount","ask_price","bid_price","bid_amount"]
[1725289165266,0.84837715,58766.0,58765.0,0.067]
[1725289165487,1.18870915,58766.0,58765.0,0.067]
[1725289170997,1.52904115,58766.0,58765.0,0.067]
[1725289171251,1.62904115,58766.0,58765.0,0.067]
[1725289172841,1.72354115,58766.0,58765.0,0.067]
[1725289173746,1.72354115,58766.0,58765.0,0.058]
[1725289175299,1.72254115,58766.0,58765.0,0.05]
[1725289175527,1.72254115,58766.0,58765.0,0.051]
[1725289178445,2.19107315,58766.0,58765.0,0.051]
[1725289180139,2.37962479,58766.0,58765.0,0.051]
[1725289180360,2.50706009,58766.0,58765.0,0.051]
[1725289180603,2.50916702,58766.0,58765.0,0.051]
[1725289180813,2.34061538,58766.0,58765.0,0.051]
[1725289181266,2.21107315,58766.0,58765.0,0.051]
[1725289181478,2.21307315,58766.0,58765.0,0.051]
[1725289181695,2.36730229,58766.0,58765.0,0.051]
[1725289182586,2.36730229,58766.0,58765.0,0.001]
[1725289184452,2.38438523,58766.0,58765.0,0.001]
[1725289186270,2.38437196,58766.0,58765.0,0.001]
[1725289187673,2.27065319,58766.0,58765.0,0.001]
[1725289188368,2.2439627,58766.0,58765.0,0.001]
[1725289189477,2.22687976,58766.0,58765.0,0.001]
[1725289191376,2.25357086,58766.0,58765.0,0.001]
[1725289192059,2.36802513,58766.0,58765.0,0.001]
[1725289196923,2.37002513,58766.0,58765.0,0.001]
[1725289197145,2.36802513,58766.0,58765.0,0.001]
[1725289197817,2.49555345,58766.0,58765.0,0.001]
[1725289199446,2.49557659,58766.0,58765.0,0.001]
[1725289199691,2.36802513,58766.0,58765.0,0.001]
[1725289200142,2.53657677,58766.0,58765.0,0.001]
[1725289201505,2.4201225,58766.0,58765.0,0.001]
[1725289201719,2.50988567,58766.0,58765.0,0.001]
[1725289201947,1.54184776,58766.0,58765.0,0.001]
[1725289202196,1.65830203,58766.0,58765.0,0.001]
[1725289202701,1.20151576,58766.0,58765.0,0.0946]
[1725289202896,1.20151576,58766.0,58765.0,0.2082]
[1725289203839,1.54184776,58766.0,58765.0,0.001]
[1725289204327,1.80867796,58766.0,58765.0,0.001]
[1725289204768,1.64184776,58766.0,58765.0,0.001]
[1725289205648,1.99217976,58766.0,58765.0,0.001]
[1725289205858,1.99417976,58766.0,58765.0,0.001]
[1725289206282,2.01417976,58766.0,58765.0,0.001]
[1725289206790,2.14175324,58766.0,58765.0,0.001]
[1725289207015,2.13975324,58766.0,58765.0,0.001]
[1725289207694,2.31030488,58766.0,58765.0,0.001]
[1725289207904,2.34645324,58766.0,58765.0,0.001]
[1725289208109,2.34445324,58766.0,58765.0,0.001]
[1725289208324,2.36945324,58766.0,58765.0,0.001]
[1725289208752,2.36949206,58766.0,58765.0,0.001]
[1725289209236,2.4104314,58766.0,58765.0,0.001]
[1725289209906,2.24187976,58766.0,58765.0,0.001]
[1725289210116,2.22187976,58766.0,58765.0,0.001]
[1725289210379,2.12567976,58766.0,58765.0,0.001]
[1725289210588,2.03717976,58766.0,58765.0,0.001]
[1725289212119,1.531755,58756.0,58755.0,0.0914]
[1725289212329,1.64820927,58756.0,58755.0,0.0914]
[1725289212763,1.191428,58753.0,58752.0,0.1168]
[1725289213020,1.30788227,58753.0,58752.0,0.2095]
[1725289213449,1.64829027,58753.0,58752.0,0.2095]
[1725289214190,1.191428,58753.0,58752.0,0.2095]
[1725289214409,1.192428,58753.0,58752.0,0.2195]
[1725289215155,1.192428,58753.0,58752.0,0.2295]
[1725289220106,1.38656709,58753.0,58752.0,0.2295]
[1725289220311,1.82697509,58753.0,58752.0,0.2295]
[1725289221900,1.82697509,58753.0,58752.0,0.02]
[1725289223678,1.82397509,58753.0,58752.0,0.02]
[1725289226413,1.48356709,58753.0,58752.0,0.02]
[1725289226830,1.82397509,58753.0,58752.0,0.02]
[1725289229503,1.191508,58749.0,58748.0,0.0961]
[1725289229728,1.38564709,58749.0,58748.0,0.0961]
[1725289231317,1.38664709,58749.0,58748.0,0.1021]
[1725289231543,1.38664709,58749.0,58748.0,0.1081]
[1725289234813,1.83707809,58749.0,58748.0,0.012]
[1725289235015,1.82707809,58749.0,58748.0,0.012]
[1725289235881,2.39731103,58749.0,58748.0,0.012]
[1725289236114,2.26750909,58749.0,58748.0,0.012]
[1725289236600,1.53225,58737.0,58736.0,0.04984651]
[1725289236799,1.53425,58737.0,58736.0,0.04984651]
[1725289237030,1.53425,58737.0,58731.0,0.0004]
[1725289237031,1.53238,58732.0,58731.0,0.0004]
[1725289237278,1.83651909,58732.0,58731.0,0.0004]
[1725289237456,1.83651909,58732.0,58731.0,0.01213472]
[1725289237715,2.17704809,58732.0,58731.0,0.0004]
[1725289237924,2.34759973,58732.0,58731.0,0.0004]
[1725289238377,2.34959973,58732.0,58731.0,0.0004]
[1725289240400,2.64280073,58732.0,58731.0,0.0004]
[1725289241292,2.64080073,58732.0,58731.0,0.0004]
[1725289241512,2.66780073,58732.0,58731.0,0.0024]
[1725289241934,1.532695,58720.0,58719.0,0.0115827]
[1725289242181,1.72683409,58720.0,58719.0,0.0115827]
[1725289242616,1.82683409,58720.0,58719.0,0.0115827]
[1725289243078,1.92683409,58720.0,58719.0,0.0115827]
[1725289244243,2.50433309,58720.0,58719.0,0.0115827]
[1725289244473,2.64153995,58720.0,58719.0,0.0115827]
[1725289244898,2.64353995,58720.0,58719.0,0.0115827]
[1725289245180,2.64053995,58720.0,58719.0,0.0115827]
[1725289245410,2.63853995,58720.0,58719.0,0.0115827]
[1725289245643,2.72238635,58720.0,58719.0,0.0125827]
[1725289245913,2.73638635,58720.0,58719.0,0.0135827]
[1725289246197,2.69325012,58720.0,58719.0,0.0135827]
[1725289246914,2.67925012,58720.0,58719.0,0.0125827]
[1725289247126,2.66525012,58720.0,58719.0,0.0115827]
[1725289247360,2.69325012,58720.0,58719.0,0.0115827]
[1725289247847,2.29421103,58720.0,58719.0,0.0115827]
[1725289248085,2.48835012,58720.0,58719.0,0.0115827]
[1725289248324,2.69088109,58720.0,58719.0,0.0115827]
[1725289248563,2.47523309,58720.0,58719.0,0.0115827]
[1725289249480,2.30543309,58720.0,58719.0,0.00057054]
[1725289249694,1.96483409,58720.0,58719.0,0.09527054]
[1725289249930,1.95483409,58720.0,58719.0,0.09527054]
[1725289250376,1.96483409,58720.0,58719.0,0.09527054]
[1725289251237,1.96483409,58720.0,58719.0,0.20387054]
[1725289251238,0.979497,58720.0,58719.0,0.20387054]
[1725289251484,0.638898,58720.0,58719.0,0.20387054]
[1725289251735,0.298299,58720.0,58719.0,0.20387054]
[1725289251951,0.638898,58720.0,58719.0,0.20387054]
[1725289253713,0.624898,58720.0,58719.0,0.20387054]
[1725289253918,0.610898,58720.0,58719.0,0.20387054]
[1725289254132,1.68438419,58720.0,58719.0,0.20797054]
[1725289254347,1.68438419,58720.0,58719.0,0.00057054]
[1725289254348,2.02798319,58720.0,58719.0,0.00057054]
[1725289254770,1.395096,58720.0,58719.0,0.00057054]
[1725289255210,1.396096,58720.0,58719.0,0.00057054]
[1725289258146,1.736695,58720.0,58719.0,0.00057054]
[1725289260877,2.077294,58720.0,58719.0,0.00057054]
[1725289262090,2.087294,58720.0,58719.0,0.00057054]
[1725289262326,2.25584564,58720.0,58719.0,0.00057054]
[1725289262572,2.25584564,58720.0,58708.0,0.0491283]
[1725289262573,1.873547,58712.0,58708.0,0.0491283]
[1725289262815,2.29328609,58712.0,58708.0,0.0491283]
[1725289263045,2.41999871,58712.0,58706.0,0.00047774]
[1725289263287,2.81179535,58712.0,58706.0,0.00047774]
[1725289263517,2.72359535,58712.0,58706.0,0.00047774]
[1725289263729,2.73559535,58712.0,58706.0,0.00047774]
[1725289263965,2.74759535,58712.0,58706.0,0.00047774]
[1725289264237,3.07678935,58712.0,58706.0,0.00047774]
[1725289265170,3.10478935,58712.0,58706.0,0.00047774]
[1725289265398,3.29288935,58712.0,58706.0,0.00047774]
[1725289265627,1.895707,58707.0,58706.0,0.00047774]
[1725289265869,3.28616309,58707.0,58706.0,0.00047774]
[1725289266101,0.002,58700.0,58699.0,0.04955753]
[1725289266329,0.70721109,58700.0,58699.0,0.06153629]
[1725289266579,0.70721109,58700.0,58689.0,0.2027]
[1725289266580,0.17038,58692.0,58689.0,0.2027]
[1725289266805,0.36451909,58692.0,58691.0,0.01240131]
[1725289267259,1.38680209,58692.0,58691.0,0.0004]
[1725289267729,1.72756309,58692.0,58691.0,0.0004]
[1725289267972,1.82756309,58692.0,58691.0,0.0004]
[1725289268633,1.83156309,58692.0,58691.0,0.0004]
[1725289269129,1.83756309,58692.0,58691.0,0.0004]
[1725289273565,1.302663,58692.0,58691.0,0.0004]
[1725289273782,1.302663,58692.0,58691.0,0.187]
[1725289273783,1.202663,58692.0,58691.0,0.187]
[1725289274227,0.18038,58692.0,58691.0,0.187]
[1725289274443,0.01,58692.0,58691.0,0.36947068]
[1725289274867,0.01,58692.0,58691.0,0.71023768]
[1725289275083,0.006,58692.0,58691.0,0.19908768]
[1725289275294,0.170372,58695.0,58691.0,0.36947068]
[1725289275547,0.170372,58695.0,58694.0,0.1856]
[1725289275765,1.2513,58745.0,58694.0,0.01207922]
[1725289275766,0.340718,58700.0,58694.0,0.01207922]
[1725289275981,0.17037,58696.0,58695.0,0.1856]
[1725289276205,0.511108,58696.0,58695.0,0.1976764]
[1725289276417,0.17037,58696.0,58695.0,0.1976764]
[1725289276675,0.851846,58696.0,58695.0,0.1976764]
[1725289277103,0.851846,58696.0,58695.0,0.1856]
[1725289277334,0.851846,58696.0,58695.0,0.1976764]
[1725289277560,0.851846,58696.0,58695.0,0.1856]
[1725289278023,0.17037,58696.0,58695.0,0.1856]
[1725289278429,0.340721,58699.0,58695.0,0.0120764]
[1725289278656,0.340713,58701.0,58696.0,0.0976]
[1725289278882,0.3407,58703.0,58696.0,0.10967359]
[1725289279134,0.170359,58700.0,58699.0,0.0759]
[1725289279363,0.511074,58700.0,58699.0,0.18556513]
[1725289279591,0.511074,58700.0,58699.0,0.1735]
[1725289280032,0.511074,58700.0,58699.0,0.18556513]
[1725289280257,0.851789,58700.0,58699.0,0.18556513]
[1725289280518,0.854789,58700.0,58699.0,0.18556513]
[1725289280746,0.854789,58700.0,58699.0,0.1735]
[1725289280969,0.854789,58700.0,58699.0,0.18556513]
[1725289281214,0.003,58700.0,58699.0,0.18556513]
[1725289281424,0.004,58700.0,58699.0,0.1735]
[1725289281648,0.004,58700.0,58699.0,0.18556513]
[1725289281865,0.515072,58700.0,58699.0,0.18556513]
[1725289282088,0.855787,58700.0,58699.0,0.18556513]
[1725289282296,0.855787,58700.0,58699.0,0.1735]
[1725289282513,1.42421511,58700.0,58699.0,0.1735]
[1725289282743,1.42421511,58700.0,58699.0,0.0759]
[1725289282958,1.196502,58700.0,58699.0,0.0759]
[1725289283631,0.855787,58700.0,58699.0,0.0759]
[1725289287097,1.196502,58700.0,58699.0,0.0759]
[1725289287990,1.196502,58700.0,58691.0,0.0004]
[1725289287991,0.17038,58692.0,58691.0,0.1002]
[1725289288253,1.38680209,58692.0,58691.0,0.01245376]
[1725289288497,1.38680209,58692.0,58691.0,0.0004]
[1725289289160,1.38780209,58692.0,58691.0,0.0004]
[1725289289377,1.72856309,58692.0,58691.0,0.0004]
[1725289289586,1.72856309,58692.0,58691.0,0.0014]
[1725289289809,1.72956309,58692.0,58691.0,0.0014]
[1725289290732,1.72856309,58692.0,58691.0,0.0014]
[1725289291019,1.90111473,58692.0,58691.0,0.0014]
[1725289291469,1.72856309,58692.0,58691.0,0.0014]
[1725289291709,1.72756309,58692.0,58691.0,0.0004]
[1725289291932,1.73756309,58692.0,58691.0,0.0004]
[1725289292438,1.73156309,58692.0,58691.0,0.0004]
[1725289292672,1.87739298,58692.0,58691.0,0.0004]
[1725289292899,1.73756309,58692.0,58691.0,0.0004]
[1725289293580,2.07832409,58692.0,58691.0,0.0004]
[1725289293796,2.18832409,58692.0,58691.0,0.0004]
[1725289295351,2.21032409,58692.0,58691.0,0.0004]
[1725289295596,2.23332409,58692.0,58691.0,0.0004]
[1725289295839,2.40187573,58692.0,58691.0,0.0004]
[1725289296098,2.40187573,58692.0,58677.0,0.1321]
[1725289296099,0.01,58679.0,58677.0,0.098015]
[1725289296353,0.1191,58691.0,58660.0,0.1049827]
[1725289296354,1.533951,58672.0,58660.0,0.1049827]
[1725289296622,2.35041109,58672.0,58660.0,0.1049827]
[1725289296880,2.14510709,58672.0,58660.0,0.1049827]
[1725289297110,2.41365873,58672.0,58660.0,0.1049827]
[1725289297338,1.92809009,58672.0,58660.0,0.1049827]
[1725289298028,1.94209009,58672.0,58660.0,0.1049827]
[1725289298249,1.94209009,58672.0,58660.0,0.0115827]
[1725289298250,2.03189009,58672.0,58660.0,0.0115827]
[1725289298712,2.03189009,58672.0,58661.0,0.093]
[1725289298713,2.02189009,58672.0,58661.0,0.093]
[1725289299149,2.03589009,58672.0,58661.0,0.093]
[1725289299366,2.23744173,58672.0,58661.0,0.093]
[1725289299580,1.421073,58672.0,58661.0,0.093]
[1725289299829,1.761951,58672.0,58668.0,0.0792]
[1725289300061,1.761951,58672.0,58661.0,0.093]
[1725289300062,1.747951,58672.0,58661.0,0.093]
[1725289300302,1.761951,58672.0,58660.0,0.0115827]
[1725289300519,1.942551,58672.0,58662.0,0.0792]
[1725289300730,1.90836434,58672.0,58662.0,0.0792]
[1725289300931,1.577512,58672.0,58662.0,0.0792]
[1725289301163,1.761951,58672.0,58662.0,0.0792]
[1725289301409,0.298439,58672.0,58671.0,0.1786]
[1725289301632,0.468878,58672.0,58671.0,0.1786]
[1725289301854,0.966195,58672.0,58671.0,0.1786]
[1725289302305,1.321073,58672.0,58671.0,0.1786]
[1725289302552,1.307073,58672.0,58671.0,0.0004]
[1725289302987,1.316073,58672.0,58671.0,0.0004]
[1725289303203,1.416073,58672.0,58671.0,0.0004]
[1725289303676,1.761951,58672.0,58671.0,0.0004]
[1725289304102,1.770951,58672.0,58671.0,0.0004]
[1725289304789,1.846651,58672.0,58671.0,0.0004]
[1725289305123,2.219529,58672.0,58671.0,0.0004]
[1725289305327,1.878651,58672.0,58671.0,0.0004]
[1725289305530,1.860651,58672.0,58671.0,0.0004]
[1725289305742,2.215529,58672.0,58671.0,0.0004]
[1725289305955,2.38408064,58672.0,58671.0,0.0004]
[1725289306167,2.215529,58672.0,58671.0,0.0004]
[1725289306388,1.874651,58672.0,58671.0,0.0004]
[1725289307018,1.888651,58672.0,58671.0,0.0004]
[1725289308381,2.328729,58672.0,58671.0,0.0004]
[1725289308642,2.65498085,58672.0,58671.0,0.0004]
[1725289308840,2.71207585,58672.0,58671.0,0.0004]
[1725289309064,2.71207585,58672.0,58671.0,1e-06]
[1725289309272,3.23275385,58672.0,58671.0,1e-06]
[1725289309478,2.65880064,58672.0,58671.0,1e-06]
[1725289309690,2.326729,58672.0,58671.0,1e-06]
[1725289309914,2.319047,58672.0,58671.0,1e-06]
[1725289310130,1.980051,58672.0,58671.0,1e-06]
[1725289310570,2.33515545,58672.0,58671.0,1e-06]
[1725289311173,2.320929,58672.0,58671.0,1e-06]
[1725289311622,2.36378607,58672.0,58671.0,1e-06]
[1725289312910,2.3905194,58672.0,58671.0,1e-06]
[1725289313520,2.2254194,58672.0,58671.0,1e-06]
[1725289313741,1.8845414,58672.0,58671.0,1e-06]
[1725289314394,2.2254194,58672.0,58671.0,1e-06]
[1725289315542,2.2254194,58672.0,58651.0,0.0004]
[1725289315543,1.697373,58652.0,58651.0,0.0004]
[1725289315747,1.90151209,58652.0,58651.0,0.0004]
[1725289315955,2.34250609,58652.0,58651.0,0.0004]
[1725289316384,2.36924674,58652.0,58651.0,0.0004]
[1725289316818,2.27954674,58652.0,58651.0,0.0004]
[1725289317027,2.29354674,58652.0,58651.0,0.0004]
[1725289317241,2.46209838,58652.0,58651.0,0.0004]
[1725289317708,2.48209838,58652.0,58651.0,0.0004]
[1725289317988,2.49609838,58652.0,58651.0,0.0004]
[1725289318230,2.46935773,58652.0,58651.0,0.0004]
[1725289318465,2.47135773,58652.0,58651.0,0.0004]
[1725289318703,2.45735773,58652.0,58651.0,0.0004]
[1725289318939,1.534473,58652.0,58651.0,0.0928]
[1725289319169,1.534473,58652.0,58651.0,0.1655]
[1725289319170,1.207479,58652.0,58651.0,0.1655]
[1725289319623,1.193479,58652.0,58651.0,0.1655]
[1725289320050,1.207479,58652.0,58651.0,0.1655]
[1725289320527,1.307479,58652.0,58651.0,0.1655]
[1725289321271,1.634473,58652.0,58651.0,0.1655]
[1725289321497,1.662473,58652.0,58651.0,0.1655]
[1725289321731,1.321479,58652.0,58651.0,0.1655]
[1725289322385,1.221479,58652.0,58651.0,0.1655]
[1725289322839,1.207479,58652.0,58651.0,0.1655]
[1725289323082,1.221479,58652.0,58651.0,0.1655]
[1725289324449,1.562473,58652.0,58651.0,0.1655]
[1725289324912,1.221479,58652.0,58651.0,0.1655]
[1725289327021,0.880485,58652.0,58651.0,0.1655]
[1725289327493,0.1,58658.0,58651.0,0.1655]
[1725289327721,0.1,58657.0,58654.0,0.0819]
[1725289327945,0.85244,58655.0,58654.0,0.0819]
[1725289328422,0.511464,58655.0,58654.0,0.0819]
[1725289329096,1.193416,58655.0,58654.0,0.0819]
[1725289329322,1.193416,58655.0,58653.0,0.0642]
[1725289329323,0.511473,58654.0,58653.0,0.0642]
[1725289329584,1.59060689,58654.0,58653.0,0.0542]
[1725289329812,1.59060689,58654.0,58651.0,0.0014]
[1725289329813,1.203479,58652.0,58651.0,0.0014]
[1725289330037,1.895467,58652.0,58651.0,0.0014]
[1725289330270,1.634473,58652.0,58651.0,0.0004]
[1725289331007,2.08906193,58652.0,58651.0,0.0004]
[1725289331679,2.059367,58652.0,58651.0,0.0004]
[1725289331915,1.718373,58652.0,58651.0,0.0004]
[1725289332137,1.644473,58652.0,58651.0,0.0004]
[1725289332583,1.634473,58652.0,58651.0,0.0004]
[1725289333042,1.634473,58652.0,58651.0,0.0014]
[1725289333043,1.643473,58652.0,58651.0,0.0014]
[1725289333269,1.634473,58652.0,58651.0,0.0004]
[1725289333504,1.634473,58652.0,58651.0,0.0014]
[1725289333745,1.70541291,58652.0,58651.0,0.0024]
[1725289333965,1.637473,58652.0,58651.0,0.0024]
[1725289334190,1.634473,58652.0,58651.0,0.0014]
[1725289334429,1.634473,58652.0,58651.0,0.0004]
[1725289334646,1.637473,58652.0,58651.0,0.0024]
[1725289335116,1.637473,58652.0,58651.0,0.0014]
[1725289335117,1.634473,58652.0,58651.0,0.0014]
[1725289335358,1.80602464,58652.0,58651.0,0.0024]
[1725289335560,1.637473,58652.0,58651.0,0.0024]
[1725289336055,1.637473,58652.0,58651.0,0.0014]
[1725289336280,1.638473,58652.0,58651.0,0.0024]
[1725289336509,1.637473,58652.0,58651.0,0.0014]
[1725289336742,1.80602464,58652.0,58651.0,0.0014]
[1725289336968,1.635473,58652.0,58651.0,0.0014]
[1725289337248,1.645473,58652.0,58651.0,0.0024]
[1725289337701,1.635473,58652.0,58651.0,0.0014]
[1725289337924,0.512491,58652.0,58651.0,0.1521]
[1725289338188,0.009,58652.0,58651.0,0.3236]
[1725289338432,0.009,58652.0,58651.0,0.3357562]
[1725289338654,0.001,58652.0,58651.0,0.16084655]
[1725289339122,0.170497,58652.0,58651.0,0.15984655]
[1725289339598,0.001,58652.0,58651.0,0.17084655]
[1725289340262,0.011,58652.0,58651.0,0.17184655]
[1725289340479,0.181497,58652.0,58651.0,0.17184655]
[1725289340701,0.171497,58652.0,58651.0,0.17084655]
[1725289341576,0.172497,58652.0,58651.0,0.17984655]
[1725289343188,0.002,58652.0,58651.0,0.17984655]
[1725289343629,0.002,58652.0,58651.0,0.3537562]
[1725289343860,0.02673574,58657.0,58656.0,0.170485]
[1725289344096,0.02673574,58657.0,58656.0,0.56716209]
[1725289344338,0.340868,58674.0,58666.0,0.069]
[1725289344561,0.511351,58668.0,58667.0,0.0863]
[1725289344781,0.340868,58674.0,58667.0,0.09471742]
[1725289344782,0.340895,58669.0,58667.0,0.09471742]
[1725289344984,0.511351,58668.0,58667.0,0.09471742]
[1725289345940,0.340895,58669.0,58668.0,0.066]
[1725289346152,0.440879,58672.0,58668.0,0.066]
[1725289346369,0.340884,58671.0,58668.0,0.07467376]
[1725289346606,0.170445,58670.0,58668.0,0.07467376]
[1725289346848,0.170445,58670.0,58668.0,0.07267376]
[1725289347079,0.005,58669.0,58668.0,0.07267376]
[1725289347553,0.1,58672.0,58668.0,0.07367376]
[1725289347554,0.170443,58671.0,58668.0,0.07367376]
[1725289347774,0.170445,58670.0,58668.0,0.07267376]
[1725289348013,0.179445,58670.0,58669.0,0.0863]
[1725289348243,0.009,58670.0,58669.0,0.0863]
[1725289348483,0.009,58670.0,58669.0,0.09497093]
[1725289348484,0.179444,58670.0,58669.0,0.09497093]
[1725289348726,0.520333,58670.0,58669.0,0.09497093]
[1725289348949,0.515333,58670.0,58669.0,0.0863]
[1725289349411,0.1,58672.0,58669.0,0.09497093]
[1725289349640,0.270441,58672.0,58669.0,0.09497093]
[1725289349955,0.270441,58672.0,58670.0,0.0688]
[1725289350056,0.1,58672.0,58671.0,0.0807]
[1725289350277,0.270439,58672.0,58671.0,0.1495]
[1725289350503,0.270439,58672.0,58671.0,0.15816529]
[1725289350727,0.611317,58672.0,58671.0,0.15816529]
[1725289351210,0.270439,58672.0,58671.0,0.15816529]
[1725289351671,0.1,58672.0,58671.0,0.33560629]
[1725289351901,0.1,58672.0,58671.0,0.16516529]
[1725289352853,0.1,58672.0,58671.0,0.17516529]
[1725289353075,0.1,58672.0,58671.0,0.16516529]
[1725289353515,0.1,58672.0,58671.0,0.17716529]
[1725289353748,0.1,58672.0,58671.0,0.17016529]
[1725289353963,0.101,58672.0,58671.0,0.18016529]
[1725289355776,0.101,58672.0,58671.0,0.35060629]
[1725289355996,0.101,58672.0,58671.0,0.18016529]
[1725289356647,0.101,58672.0,58671.0,0.35060629]
[1725289356887,0.101,58672.0,58671.0,1.03578082]
[1725289357613,0.101,58672.0,58671.0,1.37666382]
[1725289358521,0.001,58672.0,58671.0,1.37666382]
[1725289359226,0.001,58672.0,58671.0,1.39966382]
[1725289359675,0.001,58672.0,58671.0,1.40966382]
[1725289360036,0.001,58672.0,58671.0,2.10410732]
[1725289360446,0.001,58672.0,58671.0,2.46499032]
[1725289360658,0.02672214,58690.0,58689.0,0.170389]
[1725289360858,0.02672214,58690.0,58689.0,0.66407516]
[1725289361206,0.1,58698.0,58689.0,0.15799672]
[1725289361422,0.340746,58695.0,58689.0,0.15799672]
[1725289361641,0.170376,58694.0,58690.0,0.170386]
[1725289361856,0.340746,58695.0,58689.0,0.15799672]
[1725289361857,0.340736,58697.0,58691.0,0.170383]
[1725289362084,0.170373,58695.0,58691.0,0.17887408]
[1725289362295,0.170373,58695.0,58692.0,0.0871]
[1725289362512,0.170367,58697.0,58693.0,0.07618545]
[1725289363008,0.1,58698.0,58697.0,0.511098]
[1725289363225,0.1,58698.0,58697.0,0.660398]
[1725289363440,0.1,58698.0,58697.0,0.6688551]
[1725289363867,0.1,58698.0,58697.0,1.0095871]
[1725289364632,0.1,58698.0,58697.0,1.3503191]
[1725289365538,0.1,58698.0,58697.0,1.7233191]
[1725289365997,0.1,58698.0,58697.0,1.7253191]
[1725289366222,0.1,58698.0,58697.0,1.7273191]
[1725289366455,0.1,58698.0,58697.0,1.7253191]
[1725289366955,0.1,58698.0,58697.0,1.7513191]
[1725289367397,0.1,58698.0,58697.0,1.7373191]
[1725289367824,0.1,58698.0,58697.0,1.7513191]
[1725289368491,0.1,58698.0,58697.0,1.7633191]
[1725289368925,0.1,58698.0,58697.0,1.86317864]
[1725289369382,0.1,58698.0,58697.0,2.20991064]
[1725289369598,0.1,58698.0,58697.0,2.32391064]
[1725289370039,0.0655,58732.0,58714.0,0.1487]
[1725289370269,0.50540786,58725.0,58724.0,0.318988]
[1725289370498,0.0655,58743.0,58726.0,0.1944435]
[1725289370760,0.0655,58743.0,58728.0,0.170275]
[1725289370761,0.340521,58734.0,58728.0,0.170275]
[1725289370995,0.340521,58734.0,58727.0,0.01165247]
[1725289370996,0.1,58732.0,58727.0,0.00824753]
[1725289371211,0.1,58732.0,58730.0,0.0816]
[1725289371428,0.1,58732.0,58731.0,0.237367]
[1725289371643,0.1,58732.0,58731.0,0.24558759]
[1725289372130,0.1,58732.0,58731.0,0.07532059]
[1725289372356,0.610793,58732.0,58731.0,0.00822059]
[1725289372568,0.951322,58732.0,58731.0,0.00822059]
[1725289372783,0.440529,58732.0,58726.0,0.00340518]
[1725289372988,0.440529,58732.0,58727.0,0.170279]
[1725289372989,0.170268,58731.0,58727.0,0.170279]
[1725289373213,0.1,58732.0,58728.0,0.17768108]
[1725289373424,0.1,58732.0,58730.0,0.170268]
[1725289373638,0.1,58732.0,58731.0,0.184267]
[1725289373849,0.1,58732.0,58731.0,0.27406818]
[1725289374056,0.1,58732.0,58731.0,0.60060318]
[1725289374276,0.1,58732.0,58731.0,0.08980118]
[1725289374717,0.1,58732.0,58731.0,0.26006818]
[1725289374948,0.1,58732.0,58731.0,1.63269384]
[1725289375411,0.1,58732.0,58731.0,1.29215884]
[1725289375894,0.1,58732.0,58731.0,1.30615884]
[1725289376104,0.1,58732.0,58731.0,1.64669384]
[1725289376321,0.1,58732.0,58731.0,1.28315884]
[1725289376972,0.1,58732.0,58731.0,0.77235684]
[1725289377189,0.1,58732.0,58731.0,1.25615884]
[1725289377607,0.1,58732.0,58731.0,1.28315884]
[1725289378029,0.1,58732.0,58731.0,1.27015884]
[1725289378560,0.1,58732.0,58731.0,1.62469384]
[1725289379217,0.270264,58732.0,58731.0,0.18070118]
[1725289379429,0.1,58732.0,58731.0,0.51670118]
[1725289379676,0.1,58732.0,58731.0,1.83857318]
[1725289379884,0.1,58732.0,58731.0,1.85257318]
[1725289380316,0.1,58735.0,58734.0,1.191813]
[1725289380528,0.1,58735.0,58734.0,1.45746866]
[1725289380735,0.1,58735.0,58734.0,1.46558612]
[1725289381799,0.1,58735.0,58734.0,1.47958612]
[1725289382230,0.1,58735.0,58734.0,1.46558612]
[1725289383076,0.1,58735.0,58734.0,1.47958612]
[1725289383571,0.1,58735.0,58734.0,0.51889446]
[1725289384006,0.1,58735.0,58734.0,0.20637646]
[1725289384684,0.1,58735.0,58734.0,0.03611746]
[1725289384938,0.270256,58735.0,58734.0,0.03611746]
[1725289385160,0.610768,58735.0,58734.0,0.03611746]
[1725289385857,0.95128,58735.0,58734.0,0.03611746]
[1725289386067,1.291792,58735.0,58734.0,0.03611746]
[1725289386331,1.291792,58735.0,58734.0,0.028]
[1725289387273,0.1,58735.0,58724.0,0.0676]
[1725289387497,0.1,58735.0,58719.0,0.347502]
[1725289387498,0.0631,58734.0,58719.0,0.347502]
[1725289387713,0.170295,58722.0,58719.0,0.1772]
[1725289387926,0.170299,58720.0,58718.0,0.0639]
[1725289388140,0.170302,58719.0,58718.0,0.0639]
[1725289389310,0.510907,58719.0,58718.0,0.0639]
[1725289389996,0.170302,58719.0,58718.0,0.0639]
[1725289390242,0.0807,58728.0,58718.0,0.0639]
[1725289390243,0.0815,58732.0,58718.0,0.011]
[1725289390503,0.24265566,58721.0,58704.0,0.4769]
[1725289390714,0.03940991,58732.0,58704.0,0.4769]
[1725289390715,0.511029,58705.0,58704.0,0.4769]
[1725289390955,0.511029,58705.0,58697.0,0.64350786]
[1725289390956,0.170363,58698.0,58697.0,0.64350786]
[1725289391194,0.170363,58698.0,58687.0,0.4769]
[1725289391195,0.24265566,58698.0,58687.0,0.4769]
[1725289391445,0.170392,58689.0,58687.0,0.0769]
[1725289391656,0.24265566,58698.0,58687.0,0.0769]
[1725289391884,0.170392,58688.0,58687.0,0.0769]
[1725289392120,0.170392,58688.0,58685.0,0.0658]
[1725289392359,0.170392,58688.0,58682.0,0.4769]
[1725289392360,0.340782,58689.0,58682.0,0.4769]
[1725289392640,0.0611,58695.0,58681.0,0.0768]
[1725289392641,0.19448439,58693.0,58681.0,0.0768]
[1725289392899,0.170412,58681.0,58680.0,0.0633]
[1725289393102,0.170409,58683.0,58677.0,0.0768]
[1725289393314,0.340795,58687.0,58677.0,0.0768]
[1725289393527,0.340798,58686.0,58678.0,0.17042]